[Event "European Women-ch 2023"]
[Site "Petrovac"]
[Date "2023.03.21"]
[Round "4.4"]
[White "Guichard, Pauline"]
[Black "Rudzinska, Michalina"]
[Result "1-0"]
[ECO "A58"]
[WhiteElo "2379"]
[BlackElo "2212"]
[Annotator "TA"]
[PlyCount "75"]
[EventDate "2023.03.15"]
[EventType "swiss"]
[EventCountry "MNE"]
[SourceTitle "playchess.com"]
[Source "ChessBase"]
[SourceQuality "1"]
[TimeControl "40/5400+30:1800+30"]

{[%evp 9,75,39,39,39,39,37,38,18,11,8,21,20,9,11,35,19,77,41,68,89,129,131,130,105,287,193,197,183,334,337,404,412,417,412,396,0,311,304,356,358,349,349,591,604,614,589,615,584,581,570,555,526,504,499,693,687,746,718,882,819,1342,1223,29980,29981,29991,29991,29997,5832]} 1. d4 {[%emt 0:00:03]} Nf6 {[%emt 0:00:09]} 2. c4 {[%emt 0:00:07][%cal Bc2c4,Bc4b5,Bb5a6][%mdl 32]} c5 {[%emt 0:00:11]} 3. d5 {[%emt 0:00:08]} b5 {[%emt 0:00:15]} 4. cxb5 {[%emt 0:00:40]} a6 {[%emt 0:00:12]} 5. bxa6 {[%emt 0:00:07]} e6 $1 {[%emt 0:00:15]} 6. Nc3 {[%emt 0:13:20] A58: Benko/Volga Gambit: Lines with 5 bxa6.} exd5 {[%emt 0:01:10]} 7. Nxd5 {[%emt 0:00:12][%cal Oe2e4]} Be7 {[%emt 0:00:21]} 8. g3 {[%emt 0:15:26] White is slightly better.} Nxd5 {[%emt 0:05:15]} 9. Qxd5 {[%emt 0:00:06]} Rxa6 {[%emt 0:00:31]} 10. Nf3 {[%emt 0:12:37]} Rd6 {[%emt 0:10:18]} 11. Qb3 {[%emt 0:03:19]} (11. Qxc5 $2 Rd1+ 12. Kxd1 Bxc5 $19) 11... Ba6 {[%emt 0:01:06] [#]} 12. Bg2 $146 {[%emt 0:06:25]} ({Predecessor:} 12. e4 O-O 13. Bc4 Nc6 14. Qa4 Nb4 15. Bxa6 Rxa6 16. Qb3 c4 17. Qc3 Nd3+ 18. Kf1 {½-½ Serikbay,A (2181)-Ortega Beltran,X (1820) Wch U20 Girls 38th 2022 (1)}) 12... Nc6 {[%emt 0:03:30]} (12... Rb6 $11 {keeps the balance.} 13. Qc2 Nc6) 13. O-O $40 {[%emt 0:03:43][%mdl 128] Black needs to defend precisely.} Bxe2 {[%emt 0:04:44]} 14. Re1 {[%emt 0:00:30]} Re6 {[%emt 0:14:36]} 15. Be3 {[%emt 0:01:10]} Ba6 {[%emt 0:03:16]} 16. Qc3 {[%emt 0:00:53][%csl LRc5,LRg7]} c4 $2 {[%emt 0:06:57]} (16... O-O $16 {was called for.}) 17. Nd4 {[%emt 0:07:30]} Nxd4 {[%emt 0:15:08]} 18. Bxd4 {[%emt 0:00:11]} Bf6 {[%emt 0:00:22]} (18... O-O 19. Bxg7 Bf6 20. Bxf6 Qxf6) 19. Bxf6 $18 {[%emt 0:15:11]} Qxf6 {[%emt 0:00:23]} 20. Qa3 {[%emt 0:00:04]} Bc8 {[%emt 0:06:55]} 21. Qc5 {[%emt 0:04:01][%csl LRc4,LRc8]} ({Not} 21. Bd5 Qe7 22. Qc3 (22. Bxe6 Qxa3 23. Bxd7+ Kxd7 $18) 22... O-O 23. Bxe6 fxe6 24. Qxc4 Bb7 $18) 21... Ba6 {[%emt 0:01:17]} 22. Qa3 {[%emt 0:00:06]} Bc8 {[%emt 0:00:15]} 23. Bd5 {[%emt 0:00:05][%mdl 64] Pin} Qd4 {[%emt 0:00:18]} 24. Bxe6 {[%emt 0:01:12]} fxe6 {[%emt 0:00:14]} 25. Rad1 {[%emt 0:01:21]} Qf6 {[%emt 0:00:10]} (25... Qb6 {might work better.} 26. Re5 Bb7) 26. Qc5 {[%emt 0:02:24][%csl LRc4,LRc8]} Bb7 {[%emt 0:01:42]} 27. Qc7 {[%emt 0:03:56]} (27. Qxc4 Qf3 28. Kf1 (28. Rxe6+ $2 Kd8 $19) 28... O-O $15) 27... Bc6 {[%emt 0:01:02]} 28. Qc8+ {[%emt 0:02:43]} Kf7 {[%emt 0:00:18]} 29. Qxh8 {[%emt 0:02:48]} Qf3 {[%emt 0:00:06][%csl Gc6][%cal Rf3g2] [#] Wards off Re3} 30. Rxd7+ $3 {[%emt 0:00:03]} Bxd7 {[%emt 0:00:07][%mdl 4096] Endgame KQR-KQB} 31. Qb8 {[%emt 0:00:42]} ({Worse is} 31. Qxh7 Bc6 32. Kf1 c3 33. bxc3 Bb5+ 34. c4 Bxc4+ 35. Kg1 Bd5 $11) 31... g5 {[%emt 0:02:49]} 32. Qd6 {[%emt 0:01:42]} Qb7 {[%emt 0:02:03] [#]} 33. a4 $1 {[%emt 0:01:32][%cal Ba2a4,Ba4a5,Ba5a6,Ba6a7][%mdl 32]} Bc8 {[%emt 0:01:23]} (33... Qc6 34. Qxc6) 34. a5 {[%emt 0:00:26]} Kg6 {[%emt 0:02:40] [#]} 35. a6 $1 {[%emt 0:02:05]} Qxb2 {[%emt 0:00:19]} (35... Qxa6 36. Rxe6+) 36. a7 {[%emt 0:00:13] White mates.} Bb7 {[%emt 0:01:43]} 37. Qxe6+ {[%emt 0:00:08]} Kh5 {[%emt 0:00:10]} 38. Qe2+ {[%emt 0:00:07] An entertaining game by Guichard.   Weighted Error Value: White=0.21 (precise) /Black=0.51} (38. Qf7+ $142 Kg4 39. h3+ {[%mdl 64] Decoy} Kxh3 40. Qh5#) 1-0

[Event "European Women-ch 2023"]
[Site "Petrovac"]
[Date "2023.03.21"]
[Round "4.4"]
[White "Mkrtchian, Lilit"]
[Black "Mammadzada, Gunay"]
[Result "1-0"]
[ECO "D45"]
[WhiteElo "2379"]
[BlackElo "2472"]
[Annotator "TA"]
[PlyCount "59"]
[EventDate "2023.03.15"]
[EventType "swiss"]
[EventCountry "MNE"]
[SourceTitle "playchess.com"]
[Source "ChessBase"]
[SourceQuality "1"]
[TimeControl "40/5400+30:1800+30"]

{[%evp 20,59,0,0,0,0,0,6,20,16,13,0,6,6,19,27,35,23,119,116,123,116,117,99,120,85,94,91,111,105,89,59,69,72,46,34,68,6,10,0,638,622]} 1. c4 {[%emt 0:00:20]} c6 {[%emt 0:00:53]} 2. Nf3 {[%emt 0:00:44]} d5 {[%emt 0:00:08]} 3. e3 {[%emt 0:00:10]} Nf6 {[%emt 0:00:18]} 4. Nc3 {[%emt 0:00:18]} e6 {[%emt 0:01:07]} 5. d4 {[%emt 0:00:33]} Nbd7 {[%emt 0:01:50]} 6. Be2 {[%emt 0:00:26]} b6 {[%emt 0:02:00]} 7. O-O {[%emt 0:02:14]} Bb7 {[%emt 0:00:07]} 8. Qc2 {[%emt 0:01:15]} Be7 {[%emt 0:06:49]} 9. Rd1 {[%emt 0:09:21]} O-O {[%emt 0:00:45]} 10. e4 {[%emt 0:00:24]} dxe4 {[%emt 0:06:24]} 11. Nxe4 {[%emt 0:02:23]} Qc7 {[%emt 0:06:42] D45: Semi-Slav: 5 e3.} 12. Nxf6+ {[%emt 0:05:32]} Nxf6 {[%emt 0:04:30]} 13. c5 {[%emt 0:03:13]} Rfd8 {[%emt 0:17:26] The position is equal.} 14. Bg5 {[%emt 0:02:15]} a5 {[%emt 0:10:14] [#]} 15. Bh4 $146 {[%emt 0:27:33]} ({Predecessor:} 15. Rac1 bxc5 16. dxc5 Rd5 17. Rxd5 Nxd5 18. Bxe7 Qxe7 19. a3 h6 20. g3 e5 21. Nd2 {½-½ Potkin,V (2647)-Dreev,A (2668) Wch Blitz 7th 2013 (4)}) 15... bxc5 {[%emt 0:06:48]} 16. dxc5 {[%emt 0:00:53]} Qf4 {[%emt 0:04:15]} (16... Ba6 {simplifies} 17. Rxd8+ Bxd8 18. Bxa6 Rxa6 19. Bg3 Qb7) 17. a3 {[%emt 0:04:00]} a4 {[%emt 0:10:27]} 18. Rac1 {[%emt 0:13:12][%cal Ba1c1,Bc1d1,Bd1d4,Bd4c4,Bc4a4,Ba4a5,Ba5d5][%mdl 32]} Rd5 {[%emt 0:06:21] [#]} (18... Rxd1+ $11 {remains equal.} 19. Rxd1 Qf5 20. Qxf5 exf5) 19. Rxd5 $1 $16 {[%emt 0:02:53]} Nxd5 {[%emt 0:00:19]} 20. Bxe7 {[%emt 0:00:33]} Nxe7 {[%emt 0:00:02]} 21. Rd1 {[%emt 0:02:44] Strongly threatening Rd7.} Nd5 {[%emt 0:00:19]} 22. Rd4 {[%emt 0:00:25]} Qf6 {[%emt 0:00:20]} 23. Bd1 {[%emt 0:05:53] White is more active.} ({Much worse is} 23. Rxa4 $6 Rxa4 24. Qxa4 Qxb2 $11) 23... Ra5 {[%emt 0:06:26][%cal Ba8a5,Ba5c5,Bc5c3][%mdl 32]} 24. Rc4 {[%emt 0:06:44]} Qe7 {[%emt 0:02:25]} 25. Qc1 {[%emt 0:07:57]} Ba6 {[%emt 0:01:17]} 26. Rxa4 {[%emt 0:00:14]} Rxc5 {[%emt 0:00:05]} 27. Qd2 {[%emt 0:00:15]} (27. Bc2 $5 {[%cal Ra4a6]} Bb7 28. Qd2 $11) 27... Qb7 {[%emt 0:01:49]} 28. b4 {[%emt 0:01:20]} (28. h3 $14) 28... Rc3 $11 {[%emt 0:00:17]} 29. Ra5 {[%emt 0:00:17][%cal Oa5d5] Prevents Qb5. Threatens to win with Rxd5!} h6 $2 {[%emt 0:02:52][%mdl 8192] [#]} (29... c5 $11) 30. Rxd5 $1 {[%emt 0:00:15][%mdl 576] Remove Defender.   Weighted Error Value: White=0.11 (very precise) /Black=0.52} 1-0

[Event "European Women-ch 2023"]
[Site "Petrovac"]
[Date "2023.03.21"]
[Round "4.4"]
[White "Tsotsonava, Elene"]
[Black "Ibrahimova, Sabina"]
[Result "1/2-1/2"]
[ECO "B31"]
[WhiteElo "2030"]
[BlackElo "2207"]
[Annotator "TA"]
[PlyCount "106"]
[EventDate "2023.03.15"]
[EventType "swiss"]
[EventCountry "MNE"]
[SourceTitle "playchess.com"]
[Source "ChessBase"]
[SourceQuality "1"]
[TimeControl "40/5400+30:1800+30"]

{[%evp 9,106,18,36,37,40,39,39,36,63,66,99,96,150,75,121,121,114,118,124,129,120,96,127,123,141,134,154,96,141,141,269,151,154,146,189,180,192,180,177,177,202,203,211,224,227,146,200,162,169,0,0,0,0,0,0,0,0,0,0,-278,-259,-283,-252,-241,-258,-250,-248,-515,301,297,260,-18,0,0,0,0,0,0,0,0,0,0,38,38,38,38,38,38,38,0,0,0,0,0,0,-8,-8,-8,0]} 1. e4 {[%emt 0:00:02]} c5 {[%emt 0:00:07]} 2. Nf3 {[%emt 0:00:05]} Nc6 {[%emt 0:00:04]} 3. Bb5 {[%emt 0:00:05]} g6 {[%emt 0:01:05]} 4. O-O {[%emt 0:00:06]} Bg7 {[%emt 0:00:07]} 5. Re1 {[%emt 0:00:13]} Nh6 {[%emt 0:01:49]} 6. c3 {[%emt 0:00:18][%cal Bc2c3,Bc3d4,Bd4d5][%mdl 32] B31: Sicilian: 2...Nc6 3 Bb5 g6.} O-O {[%emt 0:00:17]} 7. d4 {[%emt 0:00:13]} cxd4 {[%emt 0:01:31]} 8. cxd4 {[%emt 0:00:05] White is slightly better.} d6 {[%emt 0:00:08]} 9. h3 {[%emt 0:11:53]} f6 {[%emt 0:04:34]} 10. Nc3 {[%emt 0:04:15]} Nf7 {[%emt 0:01:08] [#]} (10... a6 $142) 11. Qa4 $146 {[%emt 0:16:52]} (11. d5 $142 Nce5 12. Nd4) ({Predecessor:} 11. d5 Nce5 12. Nd4 a6 13. Bf1 g5 14. Ne6 Bxe6 15. dxe6 Nh6 16. Nd5 Rc8 17. h4 {1-0 Ducarmon,Q (2470)-Belous,M (2339) Titled Tuesday intern op 3rd May blitz 2016 (3)}) 11... Nb8 {[%emt 0:16:24]} (11... f5 $142) 12. d5 $16 {[%emt 0:02:42] Black is weak on the light squares} Nd7 {[%emt 0:05:52]} 13. Nd4 {[%emt 0:02:09] White has more active pieces. The black rooks are badly placed.} Nc5 {[%emt 0:00:39]} 14. Qd1 {[%emt 0:00:58]} a6 {[%emt 0:05:26]} 15. Bf1 {[%emt 0:04:42]} a5 {[%emt 0:06:41]} 16. Be3 {[%emt 0:04:36]} Bd7 {[%emt 0:03:50]} 17. b3 {[%emt 0:07:13]} Ng5 {[%emt 0:02:08]} (17... f5 18. exf5 gxf5 19. Rc1 $16) 18. Bd3 {[%emt 0:06:01]} ({White should play} 18. f3) 18... Rc8 {[%emt 0:17:17] [#]} 19. Rc1 $1 {[%emt 0:01:49]} b5 {[%emt 0:05:33]} (19... Kh8 $16 {was necessary.} 20. f4 e5) 20. h4 {[%emt 0:20:34]} (20. Ndxb5 Rb8 21. Nd4 Qe8 $18) (20. Bxb5 $18 Kh8 21. Nc6 Bxc6 22. dxc6) 20... b4 {[%emt 0:09:13]} 21. hxg5 {[%emt 0:00:02]} bxc3 {[%emt 0:00:23]} 22. gxf6 {[%emt 0:00:27]} (22. Rxc3 $6 fxg5 23. Rc1 g4 $14) 22... Bxf6 {[%emt 0:00:09]} 23. Rxc3 {[%emt 0:00:05]} Qb6 {[%emt 0:00:40]} 24. Rc1 {[%emt 0:05:59]} Qb4 {[%emt 0:06:43]} 25. Rc4 {[%emt 0:02:42]} Qb7 {[%emt 0:00:37]} 26. Bb1 {[%emt 0:01:27]} Qa6 {[%emt 0:01:06]} 27. Qe2 {[%emt 0:02:34]} Rc7 {[%emt 0:04:50]} (27... Bxd4 $16 28. Rxd4 (28. Bxd4 Bb5 $14) 28... Qxe2 29. Rxe2 a4 30. bxa4 Nxa4) 28. Bh6 {[%emt 0:00:59]} Rfc8 {[%emt 0:00:48]} 29. f4 $2 {[%emt 0:00:14]} (29. Qe3 $18) 29... Bxd4+ $11 {[%emt 0:04:46]} 30. Rxd4 {[%emt 0:00:15]} Qxe2 {[%emt 0:00:12]} 31. Rxe2 {[%emt 0:00:01]} Nxb3 $1 {[%emt 0:00:28]} 32. axb3 {[%emt 0:01:31]} Rc1+ {[%emt 0:00:03]} 33. Kh2 {[%emt 0:00:44]} Rxb1 {[%emt 0:00:04]} 34. e5 $2 {[%emt 0:01:31][%mdl 8192] [#]} (34. Re3 $11 {and White is okay.}) 34... Rcc1 $1 $19 {[%emt 0:00:59] And now ...Rh1+ would win.} (34... Rxb3 35. exd6 exd6 36. Re7 $11) 35. Bg5 {[%emt 0:03:09]} Rh1+ {[%emt 0:00:11]} (35... Rxb3 36. Bxe7 Bb5 37. Rf2 $16) 36. Kg3 {[%emt 0:00:01]} Rxb3+ {[%emt 0:00:08]} 37. Kf2 {[%emt 0:00:02]} Bb5 {[%emt 0:02:09]} 38. exd6 $2 {[%emt 0:00:58]} (38. Bxe7 Bxe2 39. Kxe2) 38... Bxe2 $4 {[%emt 0:00:11][%mdl 8192]} (38... exd6 $19 39. Rde4 Bxe2 40. Re8+ Kf7 41. Rxe2 h6) 39. d7 $18 {[%emt 0:00:42]} Rb8 {[%emt 0:00:45]} 40. Bxe7 $2 {[%emt 0:00:00]} ({White must play} 40. Kxe2 $18 {[%cal Od4c4] Strongly threatening Rc4!} Kf7 41. d6 exd6 42. d8=Q (42. d8=R Rb2+ 43. Kd3 Rd1+ 44. Kc3 Rxd4 $18) 42... Rxd8 43. Bxd8) 40... Bb5 {[%emt 0:00:00] Wards off Rc4} (40... Rd1 $5 {[%cal Rd1d4]} 41. Ke3 (41. d8=B $2 {perishes.} Rxd4 42. Bxa5 Bc4 $19) (41. d8=Q+ Rxd8 42. Rxd1 Bxd1 $15) 41... Rxd4 42. Kxd4 a4 43. d8=Q+ (43. d8=R+ Rxd8 44. Bxd8 Bf1 $11) 43... Rxd8 44. Bxd8 Bf1 $15) 41. d8=Q+ {[%emt 0:00:10]} Rxd8 {[%emt 0:01:00]} 42. Bxd8 $11 {[%emt 0:00:10][%mdl 4096] Endgame KRB-KRB} a4 {[%emt 0:01:35]} 43. Rb4 {[%emt 0:01:36]} Be8 {[%emt 0:04:50]} 44. Bf6 {[%emt 0:04:57]} Rd1 {[%emt 0:08:58]} 45. Bd4 {[%emt 0:03:57] Ke2 is the strong threat.} a3 {[%emt 0:00:13] aiming for ...a2.} 46. Ke2 {[%emt 0:03:40]} Rc1 {[%emt 0:08:59]} 47. Rb8 {[%emt 0:03:36]} Kf7 {[%emt 0:00:06]} 48. Rb7+ {[%emt 0:00:29]} Kg8 {[%emt 0:01:03]} 49. Ra7 {[%emt 0:14:05]} (49. d6 {feels hotter.} a2 50. Rg7+ Kf8 51. d7) 49... Rc4 {[%emt 0:03:13] The position is equal.} 50. Ke3 {[%emt 0:01:56]} Ra4 {[%emt 0:00:11]} 51. Rg7+ {[%emt 0:01:28]} Kf8 {[%cal Oa4d4]} 52. Rxh7 {[%emt 0:00:14]} a2 {[%emt 0:00:02][%cal Oa4d4] Threatens to win with ...Rxd4!} 53. Rh1 {[%emt 0:00:02]} Bd7 {[%emt 0:00:02] What a bad dream for Black.   Weighted Error Value: White=0.43/Black=0.28 (precise)} 1/2-1/2

[Event "European Women-ch 2023"]
[Site "Petrovac"]
[Date "2023.03.21"]
[Round "4.5"]
[White "Garifullina, Leya"]
[Black "Osmak, Yuliia"]
[Result "1/2-1/2"]
[ECO "B51"]
[WhiteElo "2372"]
[BlackElo "2445"]
[Annotator "TA"]
[PlyCount "156"]
[EventDate "2023.03.15"]
[EventType "swiss"]
[EventCountry "MNE"]
[SourceTitle "playchess.com"]
[Source "ChessBase"]
[SourceQuality "1"]
[TimeControl "40/5400+30:1800+30"]

{[%evp 9,155,6,23,0,16,16,22,-20,-5,-10,-14,-29,0,0,4,0,65,61,64,54,55,52,66,51,51,52,50,51,54,40,52,40,69,50,73,61,90,71,99,77,78,64,57,57,66,45,51,41,53,30,51,26,38,44,60,33,60,-14,-35,-28,-30,-125,-131,-127,-102,-102,-25,-28,-25,-25,-29,-26,-24,-28,-21,-21,-20,-20,-20,-21,-21,-28,-28,-28,-28,-28,-28,-28,-28,-43,-28,-47,-43,-50,-43,-41,0,-50,-50,-50,-50,-50,-50,-50,-50,-50,-50,-50,-50,-51,0,-50,-50,-52,-43,-50,-50,-52,-50,-60,-50,-50,0,-50,-43,-43,-18,-43,-38,-64,0,0,0,0,0,0,0,0,0,0,0,0,0,0,0,0,0,0]} 1. e4 {[%emt 0:00:08]} c5 {[%emt 0:00:04]} 2. Nf3 {[%emt 0:00:20]} d6 {[%emt 0:00:05]} 3. Bb5+ {[%emt 0:02:47]} Nd7 {[%emt 0:00:05]} 4. d4 {[%emt 0:05:03]} cxd4 {[%emt 0:03:13]} 5. Nxd4 {[%emt 0:06:13]} Ngf6 {[%emt 0:01:54]} 6. O-O {[%emt 0:04:26] B51: Sicilian: Moscow Variation (3 Bb5+) without 3...Bd7.} g6 {[%emt 0:17:56]} 7. Re1 {[%emt 0:01:18]} Bg7 {[%emt 0:02:50]} 8. c4 {[%emt 0:05:13]} O-O {[%emt 0:00:17]} 9. Bxd7 {[%emt 0:01:37]} Bxd7 {[%emt 0:03:59]} 10. Nc3 {[%emt 0:01:28]} Rc8 {[%emt 0:09:21]} 11. b3 {[%emt 0:04:01]} a6 {[%emt 0:01:47][%cal Ob7b5]} 12. a4 {[%emt 0:05:02] [#]} a5 $146 {[%emt 0:02:30]} (12... Qa5 $11 13. Bb2 Rfe8) ({Predecessor:} 12... Re8 13. a5 Bc6 14. Ra2 e6 15. Rd2 Qxa5 16. Bb2 Nh5 17. Nb1 Qb6 18. Nxc6 Bxb2 {0-1 Gauche,C (2251)-Cubas,J (2472) Florianopolis 5th 2018 (8)}) 13. h3 {[%emt 0:06:49]} Bc6 {[%emt 0:01:13]} 14. Rb1 {[%emt 0:05:30]} Re8 {[%emt 0:07:27]} 15. Ndb5 {[%emt 0:08:16]} Nd7 {[%emt 0:03:24]} 16. Qc2 {[%emt 0:02:17]} Nc5 {[%emt 0:03:35]} 17. Bf4 {[%emt 0:03:01]} Bxb5 {[%emt 0:14:51]} 18. Nxb5 {[%emt 0:10:33]} Qb6 {[%emt 0:06:03]} 19. Rbd1 {[%emt 0:01:20]} Rcd8 {[%emt 0:01:07]} 20. Bd2 {[%emt 0:06:20]} Na6 {[%emt 0:04:04]} 21. Qd3 {[%emt 0:02:19]} Rc8 {[%emt 0:02:21]} 22. Qf3 {[%emt 0:02:46]} Ra8 {[%emt 0:01:03]} 23. Bf4 {[%emt 0:06:51]} Nb4 {[%emt 0:01:34]} 24. Re2 {[%emt 0:01:35]} Na6 {[%emt 0:03:53]} 25. Red2 {[%emt 0:01:04] White is more active.} Qc6 {[%emt 0:02:05]} 26. Qe3 {[%emt 0:03:16]} Nc5 {[%emt 0:00:48]} 27. Re2 {[%emt 0:01:34]} Rad8 {[%emt 0:02:52]} 28. Bg3 {[%emt 0:00:24]} Rd7 {[%emt 0:01:28]} 29. f4 {[%emt 0:01:20]} e6 {[%emt 0:01:38]} 30. Qf3 {[%emt 0:01:10]} Bf8 {[%emt 0:01:17]} 31. Bf2 {[%emt 0:00:21]} Red8 {[%emt 0:00:29]} 32. Nd4 {[%emt 0:00:47]} Qc8 {[%emt 0:00:31]} 33. f5 {[%emt 0:00:24]} (33. Bh4 $14) 33... exf5 $1 $11 {[%emt 0:00:13]} 34. exf5 {[%emt 0:00:08]} d5 {[%emt 0:00:11][%cal Bd6d5,Bd5c4][%mdl 32] ...dxc4 is the strong threat.} 35. Bh4 {[%emt 0:01:10]} (35. Rc1 $11) 35... dxc4 $1 $17 {[%emt 0:01:10][%mdl 64] Discovered Attack} 36. Bxd8 {[%emt 0:00:11]} Qxd8 {[%emt 0:00:05]} 37. Red2 {[%emt 0:01:17] [#]} Bh6 {[%emt 0:01:00]} (37... c3 $1 $17 {[%cal Rc3d2]} 38. Ne6 (38. Qxc3 $2 {loses.} Ne4 $19) 38... fxe6 39. Rxd7 Nxd7 40. fxg6 hxg6 41. Qxc3 Qb6+ 42. Kh2 Qc5) 38. Ne6 $1 $11 {[%emt 0:00:36]} fxe6 {[%emt 0:00:14]} 39. Rxd7 {[%emt 0:00:03]} Nxd7 {[%emt 0:00:11][%cal Bc5d7,Bd7b6,Bb6a4][%mdl 32]} 40. Qxb7 {[%emt 0:00:00]} Qb6+ {[%emt 0:00:00]} (40... Be3+ $2 41. Kh1 Qf6 42. Qxd7 (42. Rxd7 {gets mated.} Qa1+) 42... cxb3 43. fxe6 $18) 41. Qxb6 {[%emt 0:01:59]} Nxb6 {[%emt 0:01:16]} 42. fxe6 {[%emt 0:05:28] [#] Threatens to win with Rd8+.} Kf8 {[%emt 0:12:24] Hoping for ...c3.} 43. bxc4 {[%emt 0:01:48]} Ke7 {[%emt 0:02:09]} 44. Kf2 {[%emt 0:00:57]} Kxe6 {[%emt 0:11:27][%cal Oh6f8]} 45. c5 {[%emt 0:00:48]} Nxa4 {[%emt 0:00:33]} 46. Ra1 {[%emt 0:00:35]} Nxc5 {[%emt 0:00:59] aiming for ...a4.} 47. Rxa5 {[%emt 0:00:33]} Bf8 {[%emt 0:01:01]} 48. Kf3 {[%emt 0:01:09]} Bd6 {[%emt 0:01:51]} 49. Ra8 {[%emt 0:00:55]} Be7 {[%emt 0:01:20]} 50. Ra7 {[%emt 0:01:54]} h5 {[%emt 0:00:53]} 51. Ra1 {[%emt 0:02:14]} Kf6 {[%emt 0:00:43]} 52. Rd1 {[%emt 0:00:52]} Ne6 {[%emt 0:00:45]} 53. Rd5 {[%emt 0:01:23]} (53. h4 $11) 53... Ng5+ $15 {[%emt 0:01:29]} 54. Ke2 {[%emt 0:01:02]} Nf7 {[%emt 0:00:00]} 55. Kf3 {[%emt 0:00:00]} Bd6 {[%emt 0:00:00]} 56. Ra5 {[%emt 0:00:12]} Ng5+ {[%emt 0:00:57]} 57. Ke3 {[%emt 0:00:29]} Bg3 {[%emt 0:01:20]} 58. Rb5 {[%emt 0:01:20]} Nf7 {[%emt 0:00:22]} 59. Kf3 {[%emt 0:00:15]} Bd6 {[%emt 0:00:33]} 60. Ra5 $1 {[%emt 0:00:20]} Be5 {[%emt 0:00:18]} 61. Ra8 {[%emt 0:01:42]} Nd6 {[%emt 0:00:15]} 62. Rf8+ {[%emt 0:01:06]} Kg5 {[%emt 0:00:18]} 63. Ra8 {[%emt 0:00:53]} Bc3 {[%emt 0:00:36]} 64. Rd8 {[%emt 0:00:56]} Nf5 {[%emt 0:00:15]} 65. Rd5 {[%emt 0:00:26]} Kh6 {[%emt 0:00:32]} (65... h4 $15) 66. Rd7 {[%emt 0:02:05]} (66. Rxf5 $11 gxf5 67. g4) 66... Nh4+ {[%emt 0:00:45]} 67. Kf2 {[%emt 0:00:00]} Bb4 {[%emt 0:00:49]} 68. Rd5 {[%emt 0:00:00]} Nf5 {[%emt 0:00:58]} 69. Kf3 {[%emt 0:00:09][%cal Od5f5]} Bc3 {[%emt 0:00:11]} ({Better is} 69... h4 $15) 70. Rxf5 {[%emt 0:01:32] The position is equal.} gxf5 $11 {[%emt 0:00:04][%mdl 4096] Endgame KB-KPP} 71. g4 $1 {[%emt 0:00:02]} f4 {[%emt 0:01:31]} 72. Kxf4 {[%emt 0:00:13]} h4 {[%emt 0:00:06]} 73. g5+ {[%emt 0:00:13]} Kh5 {[%emt 0:00:13]} 74. g6 {[%emt 0:00:25]} Kxg6 {[%emt 0:00:10]} 75. Kf3 {[%emt 0:00:07]} Kf5 {[%emt 0:00:02]} 76. Kg2 {[%emt 0:00:05]} Kf4 {[%emt 0:00:02]} 77. Kg1 {[%emt 0:00:07]} Kg3 {[%emt 0:00:03]} 78. Kh1 {[%emt 0:00:03]} Bd4 {[%emt 0:00:04] Weighted Error Value: White=0.12 (very precise) /Black=0.10 (very precise)} 1/2-1/2